Cogmind - Beta 12 @@@ ROGUE MODE // 2023.10.17 @ 19:19:12 Player: Figgis Result: Self-destructed Performance ------------- Evolutions (5) 2500 Regions Visited (10) 2000 Robots Destroyed (165) 825 Value Destroyed (5434) 5434 Prototype IDs (31) 620 Alien Tech Used (0) 0 Bonus (330) 330 TOTAL SCORE: 11709 Bonus ------- High Alert Combat Kills 30 Aligned with FarCom 300 Cogmind --------- Core Integrity 562/1000 Matter 16/300 Energy 170/170 System Corruption 0% Temperature Cool (27) Movement Walking (126) Location -5/Factory Parts ------- > --- POWER (1) -------- Light Neutrino Core > --- PROPULSION (5) --- Carbon-fiber Leg Improved Titanium Leg Improved Titanium Leg > --- UTILITY (7) ------ Advanced Heat Sink Coolant Injector Large Storage Unit Advanced Weight Redist. System Modified TNC Advanced Targeting Computer > --- WEAPON (4) ------- Gauss Rifle Mini Assault Cannon Mass Driver > --- INVENTORY (15) --- Heavy Deuterium Engine Light Fission Core Cold Fusion Reactor Proton Cannon Advanced Plasma Cannon Firepult Gauss Rifle Advanced Assault Cannon Advanced Assault Cannon Gauss Cannon Magnetic Acceleration Cannon Peak State ------------ > --- POWER ------------ Cold Fusion Reactor > --- PROPULSION ------- Carbon-fiber Leg Carbon-fiber Leg Improved Carbon-fiber Leg Improved Carbon-fiber Leg > --- UTILITY ---------- Large Storage Unit Advanced Weight Redist. System Modified TNC Advanced Targeting Computer Advanced Targeting Computer Improved Reaction Control System Improved Medium Armor Plating > --- WEAPON ----------- AWS/Autocannon > --- INVENTORY -------- Heavy Deuterium Engine Light Fission Core Improved Carbon-fiber Leg Improved Carbon-fiber Leg Improved Titanium Leg Improved Titanium Leg Coolant Injector Advanced Targeting Computer Proton Cannon Firepult Gauss Rifle Gauss Rifle Gauss Cannon Magnetic Acceleration Cannon [Rating: 82] Favorites ----------- Power Ion Engine Engine Ion Engine Power Core Light Nuclear Core Reactor Cold Fusion Reactor Propulsion Improved Carbon-fiber Leg Treads Light Treads Leg Improved Carbon-fiber Leg Hover Unit Airjet Flight Unit Improved Cesium-ion Thruster Utility Large Storage Unit Device Kinecellerator Storage Large Storage Unit Processor Advanced Targeting Computer Protection Improved Medium Armor Plating Weapon Heavy Assault Rifle Energy Cannon Advanced Beam Cannon Ballistic Gun Heavy Assault Rifle Ballistic Cannon AWS/Autocannon Build | -11 -10 -10 -9 -9 -9 -8 -8 -7 -6 -5 ------- Run | Jun Mat Min Mat Min Exi Min Mat Fac Fac Fac Slots Evolved 10 | . . . 2 . . . 2 2 2 2 Power . | . . . . . . . . . . . Propulsion 3 | . . . . . . . 1 . 1 1 Utility 5 | . . . 1 . . . 1 2 1 . Weapon 2 | . . . 1 . . . . . . 1 Parts Attached 90 | 3 11 2 12 6 2 . 15 15 13 11 Power 9 | . 2 1 . 1 . . 1 2 1 1 Engine 6 | . 2 1 . 1 . . 1 1 . . Core 2 | . . . . . . . . 1 . 1 Reactor 1 | . . . . . . . . . 1 . Propulsion 29 | 2 1 1 4 3 1 . 6 4 3 4 Treads 4 | 2 1 1 . . . . . . . . Leg 19 | . . . . 2 1 . 6 3 3 4 Wheel . | . . . . . . . . . . . Hover 5 | . . . 4 1 . . . . . . Flight 1 | . . . . . . . . 1 . . Utility 26 | . 5 . 3 1 . . 4 5 5 3 Device 15 | . 2 . 2 . . . 3 3 3 2 Storage 4 | . 3 . . . . . . . . 1 Processor 6 | . . . 1 1 . . 1 2 1 . Hackware . | . . . . . . . . . . . Protection 1 | . . . . . . . . . 1 . Artifact . | . . . . . . . . . . . Weapon 26 | 1 3 . 5 1 1 . 4 4 4 3 Energy Gun . | . . . . . . . . . . . Energy Cannon 1 | . . . . . . . 1 . . . Ballistic Gun 15 | 1 3 . 5 1 . . . 2 2 1 Ballistic Cannon 10 | . . . . . 1 . 3 2 2 2 Launcher . | . . . . . . . . . . . Special Weapon . | . . . . . . . . . . . Impact Weapon . | . . . . . . . . . . . Slashing Weapon . | . . . . . . . . . . . Piercing Weapon . | . . . . . . . . . . . Special Melee Weapon . | . . . . . . . . . . . Unidentified Prototypes 7 | . . . 1 . . . 1 2 2 1 Parts Lost 30 | . 3 2 4 7 . . 3 1 2 8 Power 5 | . 1 1 . 1 . . 1 1 . . Propulsion 11 | . 1 1 1 3 . . . . 1 4 Utility 9 | . 1 . 2 1 . . 1 . 1 3 Weapon 5 | . . . 1 2 . . 1 . . 1 Highest Loss Streak 5 | . 2 2 1 3 . . 2 1 1 5 To Critical Strikes . | . . . . . . . . . . . Average Slot Usage (%) 89 | . 93 96 97 93 89 100 85 82 88 94 Engine 8 | . 13 12 11 10 11 11 8 5 3 . Treads 4 | . 27 26 . . . . . . . . Leg 16 | . . . . 14 22 22 26 23 25 26 Hover 3 | . . . 20 6 . . . . . . Device 13 | . 8 14 14 14 11 11 15 17 11 6 Storage 9 | . 13 14 11 11 11 11 9 7 6 5 Processor 10 | . . . 6 3 11 11 9 17 20 19 Protection 1 | . . . . . . . . . 6 3 Ballistic Gun 14 | . 27 28 32 31 22 22 4 . 1 6 Ballistic Cannon 5 | . . . . . 1 11 10 7 7 15 Naked Turns . | . . . . . . . . . . . Heaviest Build 102 | 1 32 32 35 35 37 37 93 95 102 65 Greatest Support 96 | 3 40 40 40 22 20 20 54 60 78 96 Greatest Overweight (x) 2 | . . 1 2 1 1 1 1 2 1 1 Average Overweight (x) . | . . . 1 1 1 1 . . . . Largest Inventory Capacity 15 | 5 15 15 15 15 15 15 15 15 15 15 Average Capacity 14 | 5 13 15 15 15 15 15 15 15 15 15 Most Carried 15 | 5 15 12 15 14 15 15 15 15 15 15 Average Carried 13 | 3 9 10 14 10 11 15 14 14 14 13 Final Capacity 15 | 5 15 15 15 15 15 15 15 15 15 15 Final Carried 15 | 5 12 11 14 9 15 15 15 15 15 12 Class Distribution -------------------- 55% | Gunner 25% | Mutant 17% | Skirmisher Dominant Class ---------------- Mutant | -10/Materials Mutant | -10/Mines Gunner | -9/Materials Gunner | -9/Mines Mutant | -9/Exiles Skirmisher | -8/Mines Skirmisher | -8/Materials Gunner | -7/Factory Gunner | -6/Factory Gunner | -5/Factory Resources | -11 -10 -10 -9 -9 -9 -8 -8 -7 -6 -5 ----------- Run | Jun Mat Min Mat Min Exi Min Mat Fac Fac Fac Matter Collected 2978 | 230 277 142 631 220 . 16 463 148 485 366 Remotely . | . . . . . . . . . . . Salvage Created 5134 | . 725 258 1148 326 . . 735 845 831 266 Parts 300 | . 44 6 69 32 . . 42 39 55 13 Haulers Intercepted 4 | . 1 . 1 . . . . 1 1 . Recyclers Shooed 5 | . . 2 . . . . 1 . 1 1 Parts Field Recycled . | . . . . . . . . . . . Retrieved Matter . | . . . . . . . . . . . Parts Self-Destructed . | . . . . . . . . . . . Prevented . | . . . . . . . . . . . Kills | -11 -10 -10 -9 -9 -9 -8 -8 -7 -6 -5 ------- Run | Jun Mat Min Mat Min Exi Min Mat Fac Fac Fac Combat Hostiles Destroyed 122 | . 18 4 23 16 . . 21 19 14 7 Guns 69 | . 18 4 23 16 . . 6 . 1 1 Cannons 53 | . . . . . . . 15 19 13 6 Classes Destroyed 14 | . 4 1 6 . . . 1 2 . . Worker 8 | . . . 1 1 . . 1 2 3 . Builder 5 | . . . 1 . . . . 2 2 . Hauler 4 | . 1 . 1 . . . . 1 1 . Recycler 5 | . . 1 2 . . . . . 2 . Operator 5 | . . . 1 . . . 1 . 2 1 Watcher 16 | . 2 . 3 . . . 4 3 4 . Swarmer 29 | . 3 . 8 13 . . 4 . . 1 Grunt 51 | . 15 4 6 2 . . 10 8 2 4 Brawler 2 | . . . 1 1 . . . . . . Duelist 1 | . . . 1 . . . . . . . Sentry 19 | . . . 7 . . . 5 4 2 1 Hunter 10 | . . . . . . . 2 2 5 1 Programmer 9 | . . . . . . . . 4 5 . Heavy 1 | . . . . . . . . 1 . . Best Kill Streak 9 | . 5 3 9 4 . . 7 5 5 5 Combat Bots Only 6 | . 5 2 4 4 . . 6 4 2 5 Max Kills in Single Turn 3 | . 1 1 3 2 . . 1 1 1 2 Gunslinging 1 | . . . 1 1 . . . . . . Exploded . | . . . . . . . . . . . Melee . | . . . . . . . . . . . Uniques/NPCs Destroyed . | . . . . . . . . . . . Combat | -11 -10 -10 -9 -9 -9 -8 -8 -7 -6 -5 -------- Run | Jun Mat Min Mat Min Exi Min Mat Fac Fac Fac Damage Taken 6176 | . 710 392 671 410 . . 982 474 988 1549 Core 1320 | . 148 81 204 55 . . 129 63 202 438 Absorbed by Shields . | . . . . . . . . . . . Regen/Repaired (Parts) 123 | . . . . . . . 123 . . . Core Remaining (%) 64 | 100 . 8 . . . 35 76 91 76 . Volleys Fired 255 | . 70 22 59 30 . . 26 3 21 24 Largest 4 | . 2 2 3 3 . . 3 3 3 4 Hottest 188 | . 46 46 69 69 . . 111 100 131 188 Shots Fired 824 | . 140 44 177 79 . . 102 66 120 96 Gun 537 | . 140 44 177 79 . . 35 6 21 35 Cannon 287 | . . . . . . . 67 60 99 61 Launcher . | . . . . . . . . . . . Special . | . . . . . . . . . . . Kinetic 824 | . 140 44 177 79 . . 102 66 120 96 Thermal . | . . . . . . . . . . . Explosive . | . . . . . . . . . . . Electromagnetic . | . . . . . . . . . . . Robot Hit Streak 45 | . 14 10 11 6 . . 15 13 45 7 Robot Miss Streak 8 | . 6 2 8 5 . . 3 2 3 6 Penetration Max . | . . . . . . . . . . . Secondary Targets 9 | . 1 . 2 6 . . . . . . Max Gunslinging Chain 1 | . 1 . 1 1 . . . . . . Autonomous 148 | . . . . . . . 33 57 58 . Shots Hit Robots 509 | . 80 31 100 38 . . 69 51 95 45 Core Hits 213 | . 44 9 47 19 . . 27 19 29 19 Critical Kills 1 | . 1 . . . . . . . . . Critical Parts Destroyed 3 | . 1 . 1 . . . . 1 . . Critical Strikes 23 | . 2 . 1 . . . 4 11 5 . Destroy 4 | . 2 . 1 . . . . 1 . . Blast 19 | . . . . . . . 4 10 5 . Melee Attacks . | . . . . . . . . . . . Impact . | . . . . . . . . . . . Slashing . | . . . . . . . . . . . Piercing . | . . . . . . . . . . . Sneak Attacks . | . . . . . . . . . . . Combat Hostiles . | . . . . . . . . . . . Follow-up Attacks . | . . . . . . . . . . . Damage Inflicted 16819 | . 718 469 1526 718 . . 3244 4381 4602 1161 Guns 4458 | . 718 469 1526 675 . . 433 88 270 279 Cannons 12302 | . . . . . . . 2804 4293 4332 873 Explosions . | . . . . . . . . . . . Melee . | . . . . . . . . . . . Ramming 59 | . . . . 43 . . 7 . . 9 Kinetic 16760 | . 718 469 1526 675 . . 3237 4381 4602 1152 Thermal . | . . . . . . . . . . . Explosive . | . . . . . . . . . . . Electromagnetic . | . . . . . . . . . . . Impact . | . . . . . . . . . . . Slashing . | . . . . . . . . . . . Piercing . | . . . . . . . . . . . Highest Corruption 2 | . . . . . . . . 2 1 . Average Corruption 1 | . . . . . . . . 1 1 . Corruption Purged . | . . . . . . . . . . . Corruption Blocked . | . . . . . . . . . . . Effects 21 | . . . . . . . . 21 . . Message Errors 4 | . . . . . . . . 4 . . Matter Fused 5 | . . . . . . . . 5 . . Heat Flow Errors 2 | . . . . . . . . 2 . . Energy Discharges 5 | . . . . . . . . 5 . . Data Loss (minor) 3 | . . . . . . . . 3 . . Data Loss (major) 1 | . . . . . . . . 1 . . Alerts 1 | . . . . . . . . 1 . . Overload Shots . | . . . . . . . . . . . Overflow Damage 1902 | . . . . . . . 384 787 720 11 Projectiles 1902 | . . . . . . . 384 787 720 11 Explosions . | . . . . . . . . . . . Melee . | . . . . . . . . . . . Knockbacks 56 | . . . . . . . 11 16 20 9 Impact . | . . . . . . . . . . . Kinetic 51 | . . . . . . . 10 14 19 8 Secondary 5 | . . . . . . . 1 2 1 1 Self-Inflicted Damage . | . . . . . . . . . . . Shots . | . . . . . . . . . . . Rammed . | . . . . . . . . . . . Targets Rammed 9 | . . . . 7 . . 1 . . 1 Kicked 9 | . . . . 7 . . 1 . . 1 Crushed . | . . . . . . . . . . . Highest Temperature 523 | . 18 20 45 . . . 362 229 154 523 Average Temperature 79 | . 7 7 11 . . . 118 70 53 167 Received Heat Transfer 1719 | . 312 231 174 6 . . 387 144 87 378 Effects 6 | . . . . . . . . . . 6 Shutdowns 1 | . . . . . . . . . . 1 Energy Bleed 1 | . . . . . . . . . . 1 Short Circuit 2 | . . . . . . . . . . 2 Damage (core) 2 | . . . . . . . . . . 2 Siege Activations . | . . . . . . . . . . . Robots Corrupted . | . . . . . . . . . . . Combat Hostiles . | . . . . . . . . . . . Parts Fried 2 | . . . . . . . . 2 . . Impact Corruptions 1 | . . . . . . . . 1 . . Robots Melted . | . . . . . . . . . . . Combat Hostiles . | . . . . . . . . . . . Parts Melted . | . . . . . . . . . . . Heat Transferred . | . . . . . . . . . . . Parts Sabotaged . | . . . . . . . . . . . Parts Stolen . | . . . . . . . . . . . Parts Stripped . | . . . . . . . . . . . Power Chain Reactions . | . . . . . . . . . . . Missiles Intercepted . | . . . . . . . . . . . Alert | -11 -10 -10 -9 -9 -9 -8 -8 -7 -6 -5 ------- Run | Jun Mat Min Mat Min Exi Min Mat Fac Fac Fac Peak Influence 490 | . 299 164 490 375 . . 310 293 280 277 Initial 190 | . . 64 63 190 . . . 86 59 137 Average 144 | . 140 145 268 217 . . 98 104 109 166 Maximum Alert Level 2 | . 1 . 2 1 . . 1 1 1 1 Low Security (%) 74 | 100 88 100 38 46 . 100 89 85 79 78 Level 1 21 | . 11 . 36 53 . . 10 14 20 21 Level 2 3 | . . . 25 . . . . . . . Level 3 . | . . . . . . . . . . . Level 4 . | . . . . . . . . . . . Level 5 . | . . . . . . . . . . . High Security . | . . . . . . . . . . . Max Security . | . . . . . . . . . . . Squads Dispatched 19 | . 6 . 1 . . . 3 3 2 4 Investigation 5 | . 1 . . . . . 2 1 . 1 Extermination 3 | . . . . . . . . 2 1 . Reinforcement 9 | . 5 . 1 . . . 1 . 1 1 Assault . | . . . . . . . . . . . Garrison 2 | . . . . . . . . . . 2 Intercept . | . . . . . . . . . . . Searches Triggered . | . . . . . . . . . . . Construction Impeded 1 | . . . . . . . . . 1 . Haulers Reinforced 1 | . . . . . . . . . . 1 Active Scanning Responses . | . . . . . . . . . . . Cargo Convoy Interrupts . | . . . . . . . . . . . Stealth | -11 -10 -10 -9 -9 -9 -8 -8 -7 -6 -5 --------- Run | Jun Mat Min Mat Min Exi Min Mat Fac Fac Fac Distress Signals 8 | . 2 . 4 . . . 1 . 1 . Communications Jammed . | . . . . . . . . . . . Distress Signals . | . . . . . . . . . . . Times Spotted 156 | . 28 6 32 16 . . 28 21 13 12 Peak Tracking Total 6 | . 6 2 4 4 . . 6 4 2 6 Tactical Retreats 4 | . . . 2 . . . . 1 . 1 Traps | -11 -10 -10 -9 -9 -9 -8 -8 -7 -6 -5 ------- Run | Jun Mat Min Mat Min Exi Min Mat Fac Fac Fac Traps Triggered 5 | . 2 . 1 . . . 1 1 . . Indirectly . | . . . . . . . . . . . Trap Hack Attempts . | . . . . . . . . . . . Triggered . | . . . . . . . . . . . Disarmed . | . . . . . . . . . . . Reprogrammed . | . . . . . . . . . . . Reused . | . . . . . . . . . . . Traps Extracted . | . . . . . . . . . . . Installed . | . . . . . . . . . . . Triggered . | . . . . . . . . . . . Exploded 1 | . . . . . 1 . . . . . Machines | -11 -10 -10 -9 -9 -9 -8 -8 -7 -6 -5 ---------- Run | Jun Mat Min Mat Min Exi Min Mat Fac Fac Fac Machines Disabled 19 | . 1 . 2 4 . . 2 1 5 4 Max in Single Turn 2 | . 1 . 1 2 . . 1 1 1 1 Garrison Access 1 | . . . . . . . . . 1 . Machines Repaired . | . . . . . . . . . . . Machines Sabotaged . | . . . . . . . . . . . Overloaded Fab Kills . | . . . . . . . . . . . Hacking | -11 -10 -10 -9 -9 -9 -8 -8 -7 -6 -5 --------- Run | Jun Mat Min Mat Min Exi Min Mat Fac Fac Fac Machines Accessed 33 | . 2 . 3 . 2 . 6 9 7 4 Terminals 19 | . 2 . 2 . . . 5 4 4 2 Fabricators 4 | . . . . . . . . 1 2 1 Repair Stations 2 | . . . . . . . 1 1 . . Recycling Units . | . . . . . . . . . . . Scanalyzers 4 | . . . 1 . . . . 2 . 1 Garrison Access 2 | . . . . . . . . 1 1 . Total Hacks 70 | . 3 . 8 . 2 . 20 15 12 10 Successful 25 | . . . 4 . 2 . 8 4 4 3 Failed 45 | . 3 . 4 . . . 12 11 8 7 Catastrophic 12 | . 1 . 1 . . . 2 3 2 3 Database Lockouts . | . . . . . . . . . . . Manual 16 | . 1 . 4 . 1 . 7 2 . 1 Terminals 41 | . 3 . 4 . . . 16 7 7 4 Fabricators 7 | . . . . . . . . 1 3 3 Repair Stations 5 | . . . . . . . 4 1 . . Recycling Units . | . . . . . . . . . . . Scanalyzers 11 | . . . 4 . . . . 4 . 3 Garrison Access 4 | . . . . . . . . 2 2 . Terminal Hacks 11 | . . . . . 2 . 4 2 2 1 Record 1 | . . . . . 1 . . . . . Part Schematic 1 | . . . . . . . . . 1 . Robot Analysis 2 | . . . . . . . 1 . . 1 Prototype ID Bank 1 | . . . . . . . 1 . . . Level Access Points 1 | . . . . . . . . . 1 . Unreport Threat 3 | . . . . . . . 1 2 . . Maintenance Status 1 | . . . . . . . 1 . . . EX-Prototype ID Bank 1 | . . . . . 1 . . . . . Fabricator Hacks 2 | . . . . . . . . . 1 1 Load Schematic 2 | . . . . . . . . . 1 1 Repair Station Hacks 4 | . . . . . . . 4 . . . Scan Component 2 | . . . . . . . 2 . . . Repair 2 | . . . . . . . 2 . . . Recycling Unit Hacks . | . . . . . . . . . . . Scanalyzer 7 | . . . 4 . . . . 2 . 1 Insert Component 4 | . . . 2 . . . . 1 . 1 Analyze 3 | . . . 2 . . . . 1 . . Garrison Access Hacks 1 | . . . . . . . . . 1 . Seal Access 1 | . . . . . . . . . 1 . Unauthorized Hacks . | . . . . . . . . . . . Terminals . | . . . . . . . . . . . Fabricators . | . . . . . . . . . . . Repair Stations . | . . . . . . . . . . . Recycling Units . | . . . . . . . . . . . Scanalyzers . | . . . . . . . . . . . Garrison Access . | . . . . . . . . . . . Data Cores Recovered 5 | . . . 1 . . . 1 . 2 1 Used . | . . . . . . . . . . . Hacking Detections 27 | . 2 . 3 . . . 5 7 6 4 Full Trace Events 4 | . 1 . . . . . 1 1 . 1 Feedback Events . | . . . . . . . . . . . Feedback Blocked . | . . . . . . . . . . . Robot Schematics Acquired . | . . . . . . . . . . . Robots Built . | . . . . . . . . . . . Authchips . | . . . . . . . . . . . Time . | . . . . . . . . . . . Total Robot Build Rating . | . . . . . . . . . . . Part Schematics Acquired 4 | . . . 2 . . . . 1 1 . Parts Built . | . . . . . . . . . . . Authchips . | . . . . . . . . . . . Time . | . . . . . . . . . . . Total Part Build Rating . | . . . . . . . . . . . Parts Repaired 2 | . . . . . . . 2 . . . Time 88 | . . . . . . . 88 . . . Parts Recycled . | . . . . . . . . . . . Recycled Matter . | . . . . . . . . . . . Retrieved Matter . | . . . . . . . . . . . Retrieved Components . | . . . . . . . . . . . Parts Scanalyzed 4 | . . . 2 . . . . 1 . 1 Part Schematics Acquired 3 | . . . 2 . . . . 1 . . Parts Damaged . | . . . . . . . . . . . Bothacking | -11 -10 -10 -9 -9 -9 -8 -8 -7 -6 -5 ------------ Run | Jun Mat Min Mat Min Exi Min Mat Fac Fac Fac Used RIF Installer . | . . . . . . . . . . . Robots Hacked . | . . . . . . . . . . . Non-combat . | . . . . . . . . . . . Combat . | . . . . . . . . . . . Robot Hacks Applied . | . . . . . . . . . . . Relay Couplers Released 2 | . . . . . . . . . 2 . Machine Destruction 2 | . . . . . . . . . 2 . Fabnet Peak Effective % . | . . . . . . . . . . . Robots Rewired . | . . . . . . . . . . . Allies Hacked . | . . . . . . . . . . . Hacks Repelled . | . . . . . . . . . . . Allies | -11 -10 -10 -9 -9 -9 -8 -8 -7 -6 -5 -------- Run | Jun Mat Min Mat Min Exi Min Mat Fac Fac Fac Total Allies . | . . . . . . . . . . . Largest Group . | . . . . . . . . . . . Highest-Rated Group . | . . . . . . . . . . . Highest-Rated Ally . | . . . . . . . . . . . Total Orders . | . . . . . . . . . . . Ally Attacks . | . . . . . . . . . . . Total Damage . | . . . . . . . . . . . Kills . | . . . . . . . . . . . Allies Corrupted . | . . . . . . . . . . . Allies Melted . | . . . . . . . . . . . Intel | -11 -10 -10 -9 -9 -9 -8 -8 -7 -6 -5 ------- Run | Jun Mat Min Mat Min Exi Min Mat Fac Fac Fac Robot Analysis Total 2 | . . . . . . . 1 . . 1 Derelict Logs Recovered 2 | . . 1 . 1 . . . . . . Drone Launches . | . . . . . . . . . . . Drone Recoveries . | . . . . . . . . . . . Exploration | -11 -10 -10 -9 -9 -9 -8 -8 -7 -6 -5 ------------- Run | Jun Mat Min Mat Min Exi Min Mat Fac Fac Fac Turns Passed 9801 | 29 1110 294 1154 1254 477 343 1161 2073 1414 492 Spaces Moved 5041 | 39 560 96 651 706 248 175 509 998 757 302 Core 61 | 39 22 . . . . . . . . . Treads 663 | . 538 96 29 . . . . . . . Legs 3385 | . . . . 396 248 175 509 998 757 302 Wheels . | . . . . . . . . . . . Hover 932 | . . . 622 310 . . . . . . Flight . | . . . . . . . . . . . Fastest Speed 50 | 50 50 160 116 116 190 190 120 120 120 120 Average Speed 163 | 50 155 163 135 157 190 190 173 188 170 120 Slowest Speed 260 | 50 160 240 176 190 190 190 190 260 190 190 Overloaded Moves . | . . . . . . . . . . . Propulsion Burnouts . | . . . . . . . . . . . Robots Hopped . | . . . . . . . . . . . Cave-ins Triggered . | . . . . . . . . . . . Exploration Rate (%) 43 | 3 87 30 63 98 61 35 45 25 25 10 Regions Visited 10 Branch Regions 4 Pre-discovered Areas 2 | . . 1 . . 1 . . . . . Known Exits Taken 1 | . . . . . . . . . 1 . Unknown Exits Taken 9 | 1 1 1 1 1 1 1 1 1 . . Scrap Searched 3 | . . . . 2 . 1 . . . . Spaces Dug . | . . . . . . . . . . . Terrain Destroyed 54 | . . . . . . . 16 9 15 14 Melee . | . . . . . . . . . . . Projectile 54 | . . . . . . . 16 9 15 14 AOE . | . . . . . . . . . . . Terrain Rammed . | . . . . . . . . . . . Walls Destroyed . | . . . . . . . . . . . Machines Disabled . | . . . . . . . . . . . Actions | -11 -10 -10 -9 -9 -9 -8 -8 -7 -6 -5 --------- Run | Jun Mat Min Mat Min Exi Min Mat Fac Fac Fac Total 6065 | 46 686 189 790 777 254 186 738 1190 837 372 Wait 526 | . 19 69 44 28 . 12 164 140 30 20 Move 5031 | 38 559 95 650 705 247 174 508 997 756 302 Hop . | . . . . . . . . . . . Pick Up 94 | 5 20 1 17 1 4 . 13 16 8 9 Fast Attach 15 | 3 . . 1 . . . 2 6 2 1 Attach 53 | . 9 2 7 6 1 . 8 5 7 8 Detach . | . . . . . . . . . . . Swap 22 | . 2 . 4 . 1 . 5 4 4 2 Drop 60 | . 7 . 8 . 1 . 11 19 9 5 Fire 255 | . 70 22 59 30 . . 26 3 21 24 Melee . | . . . . . . . . . . . Ram . | . . . . . . . . . . . Kick 9 | . . . . 7 . . 1 . . 1 Crush . | . . . . . . . . . . . Escape Stasis . | . . . . . . . . . . . Rewire . | . . . . . . . . . . . Trap . | . . . . . . . . . . . Miscellaneous . | . . . . . . . . . . . Route ------- -11/Junkyard -10/Materials (discovered 4 exits: *Mat x3 / [*Min]) -10/Mines -9/Materials (discovered 4 exits: *Mat x2 / [*Min] / [*Sto]) -9/Mines (discovered 3 exits: *Mat x2 / *Exi) -9/Exiles (discovered 2 exits: [*Min x2]) -8/Mines -8/Materials -7/Factory -6/Factory (discovered 5 exits: *Fac x4 / [*Low]) -5/Factory History --------- Turn | Location | Event 11 | -11/Junkyard | Discovered new exit (range 16) 30 | -11/Junkyard | Entered Materials 301 | -10/Materials | Build established: Mutant 570 | -10/Materials | Discovered new exit (range 8) 614 | -10/Materials | Core integrity fell below 50% 854 | -10/Materials | Discovered new exit (range 15) 1025 | -10/Materials | Discovered new exit (range 5) 1116 | -10/Materials | Discovered new exit (range 15) 1140 | -10/Materials | Entered Mines 1197 | -10/Mines | Core integrity fell below 20% 1225 | -10/Mines | Learned location of Recycling (-9) 1342 | -10/Mines | Discovered new exit (range 9) 1434 | -10/Mines | Entered Materials 1434 | -9/Materials | Evolved 2 slots: Utility x1, Weapon x1 1735 | -9/Materials | Build established: Gunner 2125 | -9/Materials | Discovered new exit (range 16) 2280 | -9/Materials | Core integrity fell below 50% 2366 | -9/Materials | Discovered new exit (range 3) 2387 | -9/Materials | Discovered new exit (range 15) 2565 | -9/Materials | Discovered new exit (range 16) 2588 | -9/Materials | Entered Mines 2725 | -9/Mines | Learned Materials stockpile data 2810 | -9/Mines | Deemed a non-threat by the Exiles lab entrance 2810 | -9/Mines | Discovered new exit (range 5) 2920 | -9/Mines | Discovered new exit (range 8) 3016 | -9/Mines | Lost 3 parts (2n1u) 3568 | -9/Mines | Discovered new exit (range 4) 3732 | -9/Mines | Build established: Skirmisher 3842 | -9/Mines | Entered Exiles 3867 | -9/Exiles | Discovered new exit (range 17) 3890 | -9/Exiles | Met 8R-AWN 3920 | -9/Exiles | Met EX-HEX 3975 | -9/Exiles | Met EX-BIN 4029 | -9/Exiles | Aligned with FarCom system 4031 | -9/Exiles | Given EX-Vault access code 4074 | -9/Exiles | Build established: Mutant 4074 | -9/Exiles | Opened EX-Vault 4086 | -9/Exiles | Found AWS/Autocannon 4090 | -9/Exiles | Found Firepult 4095 | -9/Exiles | Found Modified TNC 4136 | -9/Exiles | Warned to stay clear of 0b10 Research branches 4154 | -9/Exiles | Exiles lab attacked by MAIN.C 4197 | -9/Exiles | Learned location of Zion (-6) 4298 | -9/Exiles | Discovered new exit (range 10) 4319 | -9/Exiles | Stole three prototypes: Modified TNC, Firepult, AWS/Autocannon 4319 | -9/Exiles | Entered Mines 4623 | -8/Mines | Build established: Skirmisher 4637 | -8/Mines | Discovered new exit (range 8) 4662 | -8/Mines | Entered Materials 4662 | -8/Materials | Evolved 2 slots: Propulsion x1, Utility x1 5171 | -8/Materials | Repaired Imp. Carbon-fiber Leg 5216 | -8/Materials | Repaired Imp. Carbon-fiber Leg 5741 | -8/Materials | Discovered new exit (range 3) 5823 | -8/Materials | Entered Factory 5823 | -7/Factory | Evolved 2 slots: Utility x2 5825 | -7/Factory | FarCom data flow suspended 6131 | -7/Factory | Build established: Gunner 7837 | -7/Factory | Discovered new exit (range 15) 7896 | -7/Factory | Entered another Factory area 7896 | -6/Factory | Evolved 2 slots: Propulsion x1, Utility x1 7988 | -6/Factory | Identified exit to Factory 8764 | -6/Factory | Discovered new exit (range 8) 9310 | -6/Factory | Entered another Factory area 9310 | -5/Factory | Evolved 2 slots: Propulsion x1, Weapon x1 9671 | -5/Factory | Garrison activated, responded to threat 9746 | -5/Factory | Lost 5 parts (3n2u) 9802 | -5/Factory | Self-destructed Last Messages --------------- 09785_ Acquired 11 matter. 09786_ Slug penetrates Wall. 09787_ K-01 Serf collects debris. 09789_ Slug penetrates Wall. 09790_ Slug penetrates H-66 Slayer. 09791_ Wall collapses. 09792_ Slug penetrates Wall. 09792_ K-01 Serf collects debris. 09793_ Slug penetrates H-66 Slayer. 09795_ Penetrated by Slug. 09796_ K-01 Serf collects debris. 09796_ Acquired 7 matter. 09798_ Acquired 8 matter. 09798_ Carbon-fiber Leg destroyed. 09799_ ALERT: Cargo convoy en route, clear transfer corridor. 09799_ Slug penetrates Wall. 09799_ S-27 Virus destroyed. 09800_ K-01 Serf collects debris. 09802_ Penetrated by Slug. 09802_ Hvy. Machine Gun destroyed. Map ----- +----------------------------------------------------+ | ?????????????????????????????????????????????????? | | ?????????????????????????????????????????????????? | | ?????????????????????????????????????????????????? | | ?????????????????????????????????????????????????? | | ?????????????????????????????????????????????????? | | ?????????????????????????????????????????????????? | | ?????????????????????????????????????????????????? | | ?????????????????????????????????????????????????? | | ?????????????????????????????????????????????????? | | ?????????????????????????????????????????????????? | | ?????????????????????##??????????????????????????? | | ?????????????????????# ??????????????????????????? | | ????????????????????##;###???????????????????????? | | ???????????????????? #???????????????????????? | | ????????????????????? #???????????????????????? | | ????????????????????? #???????????????????????? | | ?????????????????????# #???????????????????????? | | ?????????????????????# "???????????????????????? | | ?????????????????????# ##??????????????????????? | | ?????????????????????# g "#??????????????????????? | | ?????????????????????# % ??????????????????A????? | | ???????????????????+## h##??????????????????????? | | ???????????????????? g "???????????????????????? | | ?????????????????#####;;;######??????????????????? | | ?????????????????# % #??????????????????? | | ?????????????????# @ #??????????????????? | | ?????????????????# "" """ #??????????????????? | | ?????????????????# """ #??????????????????? | | ?????????????????# " "" ##?????????????????? | | ?????????????????# " % "" #??????????????????? | | ?????????????????# % #??????????????????? | | ?????????????????# #??????????????????? | | ?????????????????# #??????????????????? | | ?????????????????# !!! #??????????????????? | | ?????????????????# !!%k #??????????????????? | | ?????????????????# !! % #??????????????????? | | ???????????????##########+#####??????????????????? | | ???????????????#" =!! "#??????????????????? | | ????????????????# ! !"" ##??????????????????? | | ????????????????# Y" #???????????????????? | | ????????????????# [ "" #???????????????????? | | ????????????????# #???????????????????? | | ????????????????# #???????????????????? | | ????????????????# "" %" #???????????????????? | | ????????????????# "" """ #???????????????????? | | ????????????????# """ """ #???????????????????? | | ????????????????# """ """ #???????????????????? | | ####????????????# #???????????????????? | | #????????????# #???????????????????? | | """####################+######???????????????????? | +----------------------------------------------------+ Best States ------------- Heat Dissipation 59 Coolant Potential 65 Energy Generation 19 Energy Capacity 310 Matter Stores 300 Matter Capacity 450 Sight Range 18 Robot Scan Range 14 Terrain Scan Density 10 Jamming Range 12 Additional Mass Support 9 Armor Coverage 225 Evasion (%) 60 Targeting Accuracy 24 Recoil Reduction 2 Kinecelleration 30 Item Schematics ----------------- Airjet | -9/Materials | Scanalyzed Hvy. Assault Rifle | -9/Materials | Scanalyzed Imp. Titanium Leg | -7/Factory | Scanalyzed Adv. Hacking Suite | -6/Factory | Hacked Robot Schematics ------------------ None Fabricated ------------ Nothing Alien Tech Used ----------------- None Achievements -------------- None Challenges ------------ None Game ------ Seed ArmoredCarbideRail Manual? 0 Play Time 00:51:54 Cumulative 67.5 hours Start 2023.10.17 @ 16:05:55 End 2023.10.17 @ 19:19:12 Sessions 3 Manual Loads 0 Difficulty Rogue Special Mode None Game No. 113 Rogue 110 Adventurer 3 Explorer 0 Win Type - Total 0 Types 0/0/0/0/0/0/0/0/0 Lore% 34 Gallery% 49 Achievement% 35 Wizard Run 0 Options --------- ASCII 0 Keyboard 0 Movement Mouse Keybinds 0 Fullscreen 2 Font 18/SmallcapsGlow Map View 76x50 Tactical HUD 1 Map Filters NONE Filters NONE Steam 1 RUN: 598488f5-e521-47ad-b5de-8dfb5b17f0a6